[Event "45th FIDE Olympiad 2024"]
[Site "Budapest"]
[Date "2024.09.14"]
[Round "4.48"]
[White "Can, Emre"]
[Black "Starostits, Ilmars"]
[Result "0-1"]
[ECO "D12"]
[WhiteElo "2547"]
[BlackElo "2344"]
[Annotator "TA"]
[PlyCount "70"]
[EventDate "2024.09.05"]
[EventType "team-tourn"]
[EventCountry "HUN"]
[SourceTitle "playchess.com"]
[Source "ChessBase"]
[SourceQuality "1"]
[WhiteTeam "Turkiye"]
[BlackTeam "Latvia"]
[BlackTeamCountry "LAT"]
[TimeControl "40/5400+30:1800+30"]

{[%evp 11,70,24,18,15,20,10,22,10,24,15,17,20,26,20,22,5,20,9,44,20,71,51,78,71,175,66,81,73,83,69,77,87,75,47,49,0,0,0,0,0,0,-201,-214,-332,-306,-354,-322,-320,-143,-595,-605,-625,-570,-730,-725,-658,-558,-536,-516,-5465,-3745]} 1. d4 {[%emt 0:00:06]} d5 {[%emt 0:00:17]} 2. c4 {[%emt 0:00:29]} c6 {[%emt 0:00:05]} 3. Nf3 {[%emt 0:00:17]} Nf6 {[%emt 0:00:11]} 4. e3 {[%emt 0:01:09]} Bf5 {[%emt 0:01:13]} 5. Nc3 {[%emt 0:00:37]} e6 {[%emt 0:00:07]} 6. Nh4 {[%emt 0:00:38]} Bg6 {[%emt 0:02:16]} 7. Bd2 {[%emt 0:01:23]} Nbd7 {[%emt 0:01:07]} 8. Nxg6 {[%emt 0:08:30]} hxg6 {[%emt 0:00:06]} 9. Qb3 {[%emt 0:04:31] The position is equal.} Qc7 {[%emt 0:05:29]} 10. g3 {[%emt 0:19:31]} Be7 {[%emt 0:04:23]} 11. Bg2 {[%emt 0:05:15]} Nb6 {[%emt 0:02:40]} 12. cxd5 {[%emt 0:00:27]} exd5 {[%emt 0:01:29]} 13. O-O {[%emt 0:01:22]} Nc4 {[%emt 0:06:28]} 14. Be1 {[%emt 0:00:45]} Nd6 {[%emt 0:08:45]} 15. f3 {[%emt 0:00:07]} Nf5 {[%emt 0:06:03]} (15... Qb6 $11 {keeps the balance.}) 16. Bf2 $16 {[%emt 0:00:28]} O-O-O {[%emt 0:10:56]} 17. Rfd1 {[%emt 0:06:57]} Bd6 {[%emt 0:13:25] [#]} (17... Nd6 $16 {was called for.}) 18. Nb5 {[%emt 0:08:06]} Qb6 $14 {[%emt 0:04:13]} (18... cxb5 $2 19. Rac1 $18) 19. Nxd6+ {[%emt 0:00:19]} Nxd6 {[%emt 0:00:17]} 20. Qc2 {[%emt 0:00:20]} Rde8 {[%emt 0:04:50]} 21. Rd3 {[%emt 0:08:23]} Qc7 {[%emt 0:01:37]} 22. Rc1 {[%emt 0:03:13]} g5 {[%emt 0:01:26]} 23. g4 {[%emt 0:06:22]} (23. h3 $14) 23... Nde4 $1 $11 {[%emt 0:00:27]} 24. fxe4 {[%emt 0:00:32]} Qxh2+ {[%emt 0:00:27]} 25. Kf1 {[%emt 0:00:05]} Nxe4 {[%emt 0:02:14] And now ...Re6 would win.} 26. Ra3 $2 {[%emt 0:06:56]} (26. Be1 $11) 26... Rh6 $19 {[%emt 0:02:59]} 27. Bxe4 {[%emt 0:00:35]} (27. Qe2 {was the only chance.} Ree6 28. Bxe4 dxe4 (28... Rxe4 29. Qf3 $15) 29. Ke1 (29. Rxa7 $2 Qh1+ 30. Bg1 Ref6+ 31. Ke1 Qxg1+ 32. Kd2 Qg3 $19)) 27... Rxe4 {[%emt 0:00:40]} (27... dxe4 28. Ke2 $18 (28. Rxa7 $2 Qh1+ 29. Bg1 Rf6+ $19)) 28. Ke1 {[%emt 0:06:21] [#]} Qg2 $1 {[%emt 0:10:07]} (28... Rxg4 $2 29. Qf5+ (29. Rxa7 $2 Rf6 $19) 29... Re6 30. Qxg4 $18) 29. Qe2 {[%emt 0:02:17]} Rxg4 {[%emt 0:04:56]} ({Weaker is} 29... Qxg4 30. Qxg4+ (30. Rxa7 $2 {is the wrong capture.} Rh1+ 31. Kd2 Qxe2+ 32. Kxe2 Rxc1 $19) 30... Rxg4 31. Ke2 $11 (31. Rxa7 Rh1+ 32. Kd2 Rh2 $11)) (29... Rh2 $19 {Hoping for ...Re6.} 30. Rxa7 Kb8 (30... Qxg4 31. Rxc6+ Kd8 32. Rd6+)) 30. Kd1 $2 {[%emt 0:05:09][%mdl 8192] White is weak on the light squares. This costs White the game.} (30. Kd2 $17 {was the crucial defense.} Rh2 31. Rf1) 30... Qe4 {[%emt 0:01:08] Strongly threatening ...Rg2. Black is clearly winning.} 31. Kd2 {[%emt 0:03:43]} Rh2 {[%emt 0:01:17] aiming for ...Rgg2.} 32. Rf1 {[%emt 0:00:28]} Rgg2 {[%emt 0:00:27] ...g4 would now be deadly.} 33. Rxa7 {[%emt 0:00:25]} Qf5 {[%emt 0:01:14][%cal Rg2f2]} 34. Ra8+ {[%emt 0:01:01]} Kd7 {[%emt 0:00:04][%cal Rg2f2]} 35. Rf8 {[%emt 0:00:41]} (35. Ke1 $142 Qb1+ 36. Kd2 Qxf1 (36... Qxb2+ $2 37. Kd3 $19) 37. Qxf1 Rxf2+ 38. Ke1 Rxf1+ 39. Kxf1) 35... Rxf2 {[%emt 0:00:45] Weighted Error Value: White=0.66/Black=0.31.  Loses game:     	White=2     	---        Missed win:     	---       	Black=1      Mistake:       	White=4     	Black=2      Inaccurate:     	White=1     	---        OK:         	White=8     	Black=12     Best:        	White=2     	Black=1      Strong:       	---       	Black=2} 0-1

[Event "45th FIDE Olympiad 2024"]
[Site "Budapest"]
[Date "2024.09.14"]
[Round "4.48"]
[White "Zuniga Garcia, German"]
[Black "Al-Kuwari, Turki"]
[Result "1-0"]
[ECO "A34"]
[WhiteElo "1877"]
[BlackElo "1577"]
[PlyCount "86"]
[EventDate "2024.09.05"]
[EventType "team-tourn"]
[EventCountry "HUN"]
[WhiteTeam "Honduras"]
[BlackTeam "Qatar"]
[WhiteTeamCountry "HON"]
[BlackTeamCountry "QAT"]
[TimeControl "40/5400+30:1800+30"]

1. e4 c5 2. Nf3 g6 3. c4 Bg7 4. Nc3 Nc6 5. g3 d6 6. Bg2 Nf6 7. O-O O-O 8. h3 e5 9. d3 h6 10. a3 Be6 11. Rb1 Nd4 12. b4 b6 13. Nh4 g5 14. Nf5 Rc8 15. Nxg7 Kxg7 16. f4 Nh7 17. fxg5 hxg5 18. b5 f6 19. Ne2 Nxe2+ 20. Qxe2 Qd7 21. g4 Rh8 22. Qf3 Qe7 23. Rb2 Rcf8 24. a4 Ra8 25. Rbf2 Rhf8 26. Qe3 Rf7 27. h4 Raf8 28. Bf3 Qd7 29. Rg2 Kg8 30. Kf2 Rg7 31. Rh1 Kf7 32. Ke1 Ke8 33. Qf2 Kd8 34. a5 Rgg8 35. Qa2 gxh4 36. axb6 axb6 37. Rxh4 Ng5 38. Bd1 Rf7 39. Qa1 Rh7 40. Bxg5 fxg5 41. Qa8+ Kc7 42. Qa7+ Kc8 43. Rxh7 Qxa7 1-0

[Event "45th FIDE Olympiad 2024"]
[Site "Budapest"]
[Date "2024.09.14"]
[Round "4.49"]
[White "Rodrigue-Lemieux, Shawn"]
[Black "Theodorou, Nikolas"]
[Result "1/2-1/2"]
[ECO "B31"]
[WhiteElo "2509"]
[BlackElo "2619"]
[Annotator "TA"]
[PlyCount "114"]
[EventDate "2024.09.05"]
[EventType "team-tourn"]
[EventCountry "HUN"]
[SourceTitle "playchess.com"]
[Source "ChessBase"]
[SourceQuality "1"]
[WhiteTeam "Canada"]
[BlackTeam "Greece"]
[WhiteTeamCountry "CAN"]
[BlackTeamCountry "GRE"]
[TimeControl "40/5400+30:1800+30"]

{[%evp 67,114,107,98,106,111,87,103,111,109,106,93,96,93,135,97,29,22,24,39,45,37,17,27,36,32,21,15,19,466,476,480,468,464,453,602,0,4818,0,0,0,0,0,0,0,0,0,0,0,0]} 1. e4 {[%emt 0:00:05]} c5 {[%emt 0:00:07]} 2. Nf3 {[%emt 0:00:08]} Nc6 {[%emt 0:00:05]} 3. Bb5 {[%emt 0:00:08]} Nf6 {[%emt 0:00:06]} 4. Nc3 {[%emt 0:00:14]} g6 {[%emt 0:00:08]} 5. O-O {[%emt 0:02:32]} Bg7 {[%emt 0:00:16]} 6. Re1 {[%emt 0:01:44]} O-O {[%emt 0:05:13]} 7. e5 {[%emt 0:01:13]} Ne8 {[%emt 0:07:58]} 8. Bxc6 {[%emt 0:12:30]} dxc6 {[%emt 0:07:14]} 9. d3 {[%emt 0:07:16]} Nc7 {[%emt 0:00:10]} 10. Ne4 {[%emt 0:05:21]} b6 {[%emt 0:01:55] B31: Sicilian: 2...Nc6 3 Bb5 g6.} 11. h3 {[%emt 0:11:55]} f5 {[%emt 0:01:50]} 12. Nc3 {[%emt 0:14:56]} Ne6 {[%emt 0:03:53]} 13. a4 {[%emt 0:00:24]} a5 $146 {[%emt 0:01:12]} ({Predecessor:} 13... Qc7 14. b3 Nd4 15. Bf4 Be6 16. Nxd4 cxd4 17. Ne2 c5 18. Qd2 Bd5 19. Bh6 Bxe5 20. Bxf8 Rxf8 {1-0 Ma,Q (2606)-Cornette,M (2591) NZL-ch blitz 123rd 2016 (4)}) 14. Ne2 {[%emt 0:03:02]} f4 {[%emt 0:01:44]} 15. d4 {[%emt 0:13:40]} Ba6 {[%emt 0:06:04]} 16. c3 {[%emt 0:00:51]} Qd5 {[%emt 0:14:02]} 17. b3 {[%emt 0:00:25]} c4 {[%emt 0:03:24]} 18. bxc4 {[%emt 0:01:01]} Bxc4 {[%emt 0:00:40]} 19. Ba3 {[%emt 0:00:28]} Rf7 {[%emt 0:01:42]} 20. Nc1 {[%emt 0:04:59]} Raf8 {[%emt 0:06:29]} 21. Rb1 {[%emt 0:00:26]} b5 {[%emt 0:00:20]} 22. Nb3 {[%emt 0:01:32]} Ra8 {[%emt 0:05:15]} 23. Qc2 {[%emt 0:06:45]} Qd7 {[%emt 0:04:29]} 24. Nbd2 {[%emt 0:00:06]} Bd5 {[%emt 0:00:14]} 25. Qb2 {[%emt 0:00:12]} Nc7 {[%emt 0:03:55]} 26. Bc5 {[%emt 0:00:34]} Rff8 {[%emt 0:00:59]} 27. Qc2 {[%emt 0:03:05]} Ne6 {[%emt 0:00:45]} 28. Ba3 {[%emt 0:00:31]} Rfb8 {[%emt 0:02:04]} 29. Rb2 {[%emt 0:00:08]} Rb7 {[%emt 0:01:35]} 30. Reb1 {[%emt 0:00:16]} Rab8 {[%emt 0:00:02]} 31. Qd3 {[%emt 0:01:28]} Bf8 {[%emt 0:02:39]} 32. Kh2 {[%emt 0:00:30]} Ng7 {[%emt 0:01:48]} 33. Nb3 {[%emt 0:02:59]} Ne6 {[%emt 0:03:37]} 34. axb5 {[%emt 0:00:17]} (34. Nxa5 $6 Ra7 $11) 34... cxb5 {[%emt 0:04:05]} 35. Nxa5 {[%emt 0:00:07]} Ra7 {[%emt 0:00:02] [#]} 36. Bb4 $1 {[%emt 0:01:01]} (36. Rxb5 Rxb5 37. Rxb5 (37. Qxb5 Qxb5 38. Rxb5 Nc7 $15) 37... Nc7 38. Rxd5 (38. Rc5 e6 $11) 38... Nxd5 $11) 36... Rba8 {[%emt 0:00:22] [#]} 37. Nb3 $1 {[%emt 0:00:18]} Ra2 {[%emt 0:00:30]} 38. Nc5 {[%emt 0:02:30]} Qc6 {[%emt 0:00:11]} 39. Nxe6 {[%emt 0:00:29]} Bxe6 {[%emt 0:00:07]} 40. Qd2 {[%emt 0:01:17]} Qe4 {[%emt 0:02:15]} 41. Re1 {[%emt 0:03:27]} (41. Ng5 $2 Qxb1 42. Rxb1 Rxd2 $19) (41. Rxa2 $16 Rxa2 42. Rb2 Rxb2 43. Qxb2) 41... Qf5 $11 {[%emt 0:02:28]} 42. Re2 {[%emt 0:15:08]} Rxb2 {[%emt 0:05:01]} 43. Qxb2 {[%emt 0:01:24]} Qh5 {[%emt 0:08:29]} (43... Ra2 44. Qxa2 Bxa2 45. Rxa2 $16) 44. Qd2 {[%emt 0:06:40]} g5 {[%emt 0:04:48]} 45. d5 {[%emt 0:03:07]} Bxh3 $1 {[%emt 0:00:40]} 46. gxh3 {[%emt 0:01:01]} Qxf3 {[%emt 0:00:11]} 47. d6 {[%emt 0:01:33]} h5 $2 {[%emt 0:11:55][%mdl 8192]} (47... Ra1 $2 48. Re1 Rxe1 49. Qxe1 exd6 50. exd6 $18) (47... g4 $1 $11 {and Black is okay.} 48. hxg4 (48. dxe7 g3+ 49. fxg3 Qxg3+ 50. Kh1 Ra1+) 48... Qxg4 49. Qd5+ (49. dxe7 $2 f3 $19) 49... Kg7) 48. dxe7 $18 {[%emt 0:00:07]} Bxe7 {[%emt 0:00:02]} 49. Bxe7 {[%emt 0:00:22]} g4 {[%emt 0:00:01]} 50. Re1 {[%emt 0:01:47]} Kh7 {[%emt 0:01:57]} 51. Bf6 $2 {[%emt 0:01:36]} (51. Qc2+ $18 Kh6 52. h4 Qh3+ 53. Kg1) 51... Rg8 $2 {[%emt 0:02:53][%mdl 8192]} (51... g3+ $11 52. fxg3 Qxg3+ 53. Kh1 Rg8 54. Qd7+ Kh6 55. Bg5+ (55. Qd2 $2 Qxh3+ 56. Qh2 Qf3+) 55... Qxg5 (55... Kxg5 $2 56. Rg1 $18) (55... Rxg5 56. Qd6+ Kh7 57. Qd7+ Rg7 58. Qf5+ Qg6 59. Qxg6+ Kxg6 60. Rg1+ Kf7 61. Rxg7+ Kxg7 62. Kg2 $11) 56. Qc6+ Rg6) 52. Qd7+ $2 {[%emt 0:01:24]} (52. Qc2+ $18 Kh6 53. hxg4 Rxg4 54. Rg1 Rxg1 55. Kxg1 Qg4+ 56. Kh2) 52... Kh6 $11 {[%emt 0:04:11]} 53. Bg5+ $1 {[%emt 0:01:02]} (53. Qxb5 $2 g3+ (53... Qxf2+ 54. Kh1 Qxe1+ 55. Kh2 g3+ 56. Kg2 Qf2+ 57. Kh1 Qh2#) 54. Kg1 gxf2+ 55. Kh2 Qg2#) 53... Rxg5 {[%emt 0:00:20]} (53... Kxg5 $5 54. Qe7+ $8 (54. Qxb5 g3+ 55. fxg3 fxg3+ 56. Kg1 Qf2+ 57. Kh1 Qh2#) 54... Kg6 55. Qe6+ Kh7 56. Qf7+ Rg7 57. Qxh5+ Kg8 58. Qe8+ Kh7 59. Qh5+ Kg8 60. Qe8+ Kh7 61. Qh5+ $11) 54. Qd6+ {[%emt 0:00:07]} Kh7 {[%emt 0:00:32]} (54... Rg6 $5 55. Qf8+ $8 Rg7 56. Qh8+ Kg6 57. Qe8+ Rf7 58. Qg8+ (58. Qxb5 Qxf2+ 59. Kh1 Qxe1+ 60. Kh2 g3+ 61. Kg2 f3#) 58... Rg7 59. Qe6+ Kh7 60. Qf5+ Rg6 61. Qf7+ (61. Qxh5+ Kg7 62. hxg4 Qxf2+ 63. Kh1 f3 64. Rg1 Rh6) 61... Kh6 62. Qf8+ Kg5 63. Qd8+ Kf5 64. Qf8+ Ke6 65. Qe8+ Kf5 66. Qc8+ (66. Qxb5 $2 g3+ 67. Kg1 gxf2+ 68. Kh2 Qg2#) 66... Kg5 67. Qd8+ Kh6 68. Qf8+ $11) 55. Qd7+ {[%emt 0:00:11]} Kh6 {[%emt 0:02:14]} 56. Qd6+ {[%emt 0:00:08]} Kh7 {[%emt 0:00:35]} (56... Rg6 $5 57. Qf8+ $8 Rg7 58. Qh8+ Kg6 59. Qe8+ Rf7 60. Qg8+ (60. Qxb5 g3+ 61. fxg3 fxg3+ 62. Kg1 Qf2+ 63. Kh1 Qh2#) 60... Rg7 61. Qe6+ Kh7 62. Qf5+ Rg6 63. Qf7+ (63. Qxh5+ Kg7 64. hxg4 Qxf2+ 65. Kh1 f3 66. Rg1 Rh6) 63... Kh6 64. Qf8+ Rg7 65. Qh8+ Kg6 66. Qe8+ Rf7 67. Qg8+ (67. Qxb5 g3+ 68. fxg3 fxg3+ 69. Kg1 Qf2+ 70. Kh1 Qh2#) 67... Kh6 68. Qh8+ Kg6 69. Qg8+ $11) 57. Qd7+ {[%emt 0:00:05]} Kh6 {[%emt 0:00:46]} (57... Rg7 $5 58. Qf5+ $8 (58. Qxb5 $2 {leads to mate.} g3+ 59. Kg1 gxf2+ 60. Kh2 Qg2#) 58... Rg6 59. Qf7+ (59. Qxh5+ Kg7 60. hxg4 Qxf2+ 61. Kh1 f3 62. Rg1 Rh6) 59... Kh6 60. Qf8+ Kg5 61. Qd8+ Kh6 62. Qh8+ Kg5 63. Qd8+ Kf5 64. Qd7+ Re6 65. Qf7+ (65. Qxb5 {gets mated.} g3+ 66. fxg3 fxg3+ 67. Kg1 Qf2+ 68. Kh1 Qh2#) 65... Kg5 66. Qg8+ (66. Qxe6 {is a self mate.} g3+ 67. fxg3 fxg3+ 68. Kg1 Qf2+ 69. Kh1 Qh2#) 66... Rg6 67. Qd8+ $11) 1/2-1/2

[Event "45th FIDE Olympiad 2024"]
[Site "Budapest"]
[Date "2024.09.14"]
[Round "4.49"]
[White "Haidary, Hameedullah"]
[Black "Fancy, Stuart"]
[Result "0-1"]
[ECO "B22"]
[WhiteElo "2192"]
[BlackElo "1921"]
[PlyCount "152"]
[EventDate "2024.09.05"]
[EventType "team-tourn"]
[EventCountry "HUN"]
[WhiteTeam "Afghanistan"]
[BlackTeam "Papua New Guinea"]
[WhiteTeamCountry "AFG"]
[BlackTeamCountry "PNG"]
[TimeControl "40/5400+30:1800+30"]

1. e4 c5 2. Nf3 e6 3. c3 Nf6 4. e5 Nd5 5. d4 cxd4 6. cxd4 d6 7. Bb5+ Bd7 8. Bxd7+ Nxd7 9. O-O dxe5 10. dxe5 Be7 11. Nbd2 O-O 12. Ne4 Nc5 13. Qe2 h6 14. Bd2 Qb6 15. b3 Rfd8 16. Rac1 a5 17. Rc4 Rac8 18. Rfc1 Qa6 19. Qf1 b6 20. Nxc5 Bxc5 21. h3 Nb4 22. a3 Nd3 23. R4c3 Rc7 24. Kh2 Rcd7 25. Ra1 Qb7 26. Be1 Qb8 27. Ra2 Nxe5 28. Nxe5 Qxe5+ 29. f4 Qf6 30. Qf3 Rd1 31. Bf2 Rf1 32. Rxc5 bxc5 33. Bh4 Rxf3 34. Bxf6 gxf6 35. gxf3 Rd3 36. Kg3 Rxb3 37. Rc2 Rxa3 38. Rxc5 a4 39. Rc8+ Kg7 40. f5 Ra1 41. Ra8 a3 42. h4 a2 43. Kg2 exf5 44. h5 f4 45. Kh2 f5 46. Ra6 Kf8 47. Kg2 Ke8 48. Kh2 Kd7 49. Kg2 Kc7 50. Kh2 Kb7 51. Ra3 Kc6 52. Kg2 Kd5 53. Ra8 Ke5 54. Ra6 Re1 55. Rxa2 Kf6 56. Ra8 Re2+ 57. Kg1 Kg5 58. Rg8+ Kxh5 59. Rg7 f6 60. Rg8 Kh4 61. Rg7 h5 62. Rg8 Kh3 63. Rg6 h4 64. Rg8 Rb2 65. Rg7 Rb3 66. Kf2 Rb8 67. Rg6 Rb2+ 68. Kg1 Rb1+ 69. Kf2 Kh2 70. Rg2+ Kh1 71. Rg8 h3 72. Rg7 Rb2+ 73. Kf1 Rg2 74. Rf7 Kh2 75. Rxf6 Kg3 76. Rh6 h2 {0-} 0-1

[Event "45th FIDE Olympiad 2024"]
[Site "Budapest"]
[Date "2024.09.14"]
[Round "4.50"]
[White "Kourkoulos-Arditis, Stamatis"]
[Black "Thavandiran, Shiyam"]
[Result "1/2-1/2"]
[ECO "C02"]
[WhiteElo "2570"]
[BlackElo "2388"]
[Annotator "TA"]
[PlyCount "133"]
[EventDate "2024.09.05"]
[EventType "team-tourn"]
[EventCountry "HUN"]
[SourceTitle "playchess.com"]
[Source "ChessBase"]
[SourceQuality "1"]
[WhiteTeam "Greece"]
[BlackTeam "Canada"]
[WhiteTeamCountry "GRE"]
[BlackTeamCountry "CAN"]
[TimeControl "40/5400+30:1800+30"]

{[%evp 42,133,60,44,58,14,51,30,187,26,108,0,59,52,52,73,43,42,300,322,356,357,335,106,95,101,104,0,40,-16,-23,-60,-63,-54,-73,-59,-46,-72,-29,-110,-109,-147,-87,-87,-105,-88,-101,-98,-93,-89,-90,-92,-102,-83,-82,-104,-112,-104,-85,-103,-78,-77,-77,-77,-77,-77,0,0,0,-83,0,0,0,0,0,0,0,0,0,0,0,0,0,0,0,0,0,0,0,0,0,0,0,0]} 1. e4 {[%emt 0:00:03]} e6 {[%emt 0:00:05]} 2. d4 {[%emt 0:00:05]} d5 {[%emt 0:00:04]} 3. e5 {[%emt 0:00:06]} c5 {[%emt 0:00:06]} 4. c3 {[%emt 0:00:07]} Nc6 {[%emt 0:00:07]} 5. Nf3 {[%emt 0:00:10]} Bd7 {[%emt 0:01:59]} 6. Be2 {[%emt 0:00:34]} Nge7 {[%emt 0:00:07]} 7. O-O {[%emt 0:00:20]} Nf5 {[%emt 0:01:51]} 8. dxc5 $1 {[%emt 0:00:45] 8.dxc5 is better than 8.Bd3.} Bxc5 {[%emt 0:00:28]} 9. b4 {[%emt 0:00:28] C02: French: Advance Variation.} Bb6 {[%emt 0:00:28]} 10. Bd3 {[%emt 0:00:20]} O-O {[%emt 0:02:26]} 11. Re1 $146 {[%emt 0:01:29]} ({Predecessor:} 11. a4 a6 12. Nbd2 Nh4 13. Nxh4 Qxh4 14. Nf3 Qh5 15. Bf4 f6 16. exf6 Rxf6 17. Bg3 {1-0 Nepomniachtchi,I (2770)-Abdusattorov,N (2769) Chess.com SpeedChess blitz 2024 (1.9)}) 11... Nce7 {[%emt 0:01:09]} 12. a4 {[%emt 0:02:46]} Rc8 {[%emt 0:11:31]} 13. a5 {[%emt 0:10:16]} Bc7 {[%emt 0:00:12]} 14. Nbd2 {[%emt 0:03:58]} f6 {[%emt 0:04:06]} 15. exf6 {[%emt 0:02:23]} gxf6 {[%emt 0:01:54]} 16. c4 {[%emt 0:01:19]} Nd6 {[%emt 0:31:41]} 17. Qb3 {[%emt 0:05:58]} Qe8 {[%emt 0:12:32]} 18. cxd5 {[%emt 0:21:00]} Nxd5 {[%emt 0:00:25]} 19. Nf1 {[%emt 0:01:16]} Bb8 {[%emt 0:04:34]} 20. Bd2 {[%emt 0:02:45]} a6 {[%emt 0:02:10]} 21. Ng3 {[%emt 0:02:35]} Qf7 {[%emt 0:00:52]} 22. Rad1 {[%emt 0:03:48]} Rfd8 {[%emt 0:04:51]} 23. h3 {[%emt 0:14:21]} Ba7 {[%emt 0:04:34]} 24. Ne4 {[%emt 0:02:42]} Nb5 $2 {[%emt 0:01:51]} (24... Bc6 $11 {and Black stays safe.}) 25. Bb1 $2 {[%emt 0:03:20]} (25. Bc4 $18) 25... Kh8 {[%emt 0:01:32] [#]} (25... Qg7 $11 {remains equal.}) 26. Nc5 {[%emt 0:07:10]} (26. Bh6 $1 $16 {[%mdl 512]}) 26... Rg8 {[%emt 0:03:28]} (26... Bxc5 $11 27. bxc5 Rxc5) 27. Re4 $1 $14 {[%emt 0:02:29]} ({Worse is} 27. Nxb7 Ndc3 28. Nc5 (28. Bxc3 $2 Rxc3 29. Rxd7 Qxd7 $19) 28... Nxd1 29. Rxd1 Bc6 $17) 27... Bxc5 {[%emt 0:02:25]} 28. bxc5 {[%emt 0:00:05]} Rxc5 {[%emt 0:00:17]} 29. Rh4 {[%emt 0:00:41]} Rg7 $2 {[%emt 0:00:05][%mdl 8192]} (29... h5 $1 $14) 30. Bh6 $1 $18 {[%emt 0:03:36]} Rg6 {[%emt 0:01:24]} 31. Bxg6 {[%emt 0:00:22]} Qxg6 {[%emt 0:00:02]} 32. Qd3 $2 {[%emt 0:03:25]} (32. Rd3 $18 {is the precise move to win.} Rc8 33. Ne1) 32... Qxd3 $16 {[%emt 0:01:47]} 33. Rxd3 {[%emt 0:00:04]} Nd6 {[%emt 0:01:05]} 34. Rg4 {[%emt 0:03:53]} (34. Nd4 $16 Rxa5 35. Rg3) 34... Nf5 {[%emt 0:00:27]} (34... e5 $5 35. Rg7 Bb5 $11) 35. Bf8 {[%emt 0:02:02]} (35. Bd2 $14) 35... Rxa5 $11 {[%emt 0:00:53]} 36. Rd1 {[%emt 0:00:48]} h5 {[%emt 0:00:58]} 37. Rc4 {[%emt 0:00:46]} Kg8 {[%emt 0:00:12]} 38. Bc5 {[%emt 0:00:18]} Bb5 {[%emt 0:00:31]} 39. Re4 {[%emt 0:00:41]} Kf7 {[%emt 0:00:41]} 40. Ree1 {[%emt 0:00:34]} (40. g4 $11 Bc6 41. Rc4 (41. gxf5 Nc3 $19)) 40... Bc6 $17 {[%emt 0:01:58]} 41. Be3 {[%emt 0:06:12]} Ra3 {[%emt 0:12:58]} (41... Nfxe3 $142 42. fxe3 e5) 42. Bd2 {[%emt 0:06:33]} a5 {[%emt 0:02:02]} 43. Ra1 {[%emt 0:00:55]} Rxa1 {[%emt 0:00:39]} 44. Rxa1 {[%emt 0:00:04]} a4 {[%emt 0:00:05]} 45. g4 {[%emt 0:04:20]} hxg4 {[%emt 0:00:20]} 46. hxg4 {[%emt 0:00:04]} Nd6 {[%emt 0:00:17]} 47. Nd4 {[%emt 0:01:05]} Bd7 {[%emt 0:00:09]} 48. Nc2 {[%emt 0:00:19]} Nc4 {[%emt 0:01:53]} 49. Be1 {[%emt 0:00:30]} b5 {[%emt 0:01:15]} 50. f3 {[%emt 0:00:46]} e5 {[%emt 0:04:41]} 51. Kf2 {[%emt 0:00:14]} Ke6 {[%emt 0:00:12]} 52. Nb4 {[%emt 0:05:16]} Nf4 {[%emt 0:02:24]} 53. Bc3 {[%emt 0:01:19] [#]} Nh3+ {[%emt 0:04:38]} (53... Nb6 $1 $17 {Threatens to win with ...Nbd5.} 54. Rd1 Nbd5) 54. Kg3 $11 {[%emt 0:01:29]} Nf4 {[%emt 0:00:12]} ({Black should try} 54... Ng5 $11) 55. Kf2 $1 $17 {[%emt 0:00:09] [#]} Nd5 {[%emt 0:03:15]} (55... Nb6 $1 $17 {Strongly threatening ...Nbd5.} 56. Ke1 Kd6) 56. Nxd5 $11 {[%emt 0:00:15]} Kxd5 {[%emt 0:00:02]} 57. Rd1+ {[%emt 0:00:06]} Kc6 {[%emt 0:00:47]} 58. Bb4 {[%emt 0:00:18]} e4 {[%emt 0:01:40]} 59. fxe4 {[%emt 0:02:15]} Bxg4 {[%emt 0:00:08]} 60. Rf1 {[%emt 0:00:35]} Bh3 {[%emt 0:01:59]} 61. Rh1 {[%emt 0:00:15]} Be6 {[%emt 0:00:02]} 62. Ke2 {[%emt 0:03:16]} f5 {[%emt 0:02:03]} 63. Rh6 {[%emt 0:02:38]} Kd7 {[%emt 0:00:02]} 64. Rh7+ {[%emt 0:01:09]} Kc6 {[%emt 0:00:06]} 65. Rh6 {[%emt 0:00:02]} Kd7 {[%emt 0:00:10]} 66. Rh7+ {[%emt 0:02:04]} Kc6 {[%emt 0:00:11]} 67. Rh6 {[%emt 0:01:09]} 1/2-1/2

[Event "45th FIDE Olympiad 2024"]
[Site "Budapest"]
[Date "2024.09.14"]
[Round "4.50"]
[White "McCoy, Tom"]
[Black "Kanz, Ahmad Safy"]
[Result "0-1"]
[ECO "B22"]
[WhiteElo "1883"]
[BlackElo "1977"]
[PlyCount "56"]
[EventDate "2024.09.05"]
[EventType "team-tourn"]
[EventCountry "HUN"]
[WhiteTeam "Papua New Guinea"]
[BlackTeam "Afghanistan"]
[WhiteTeamCountry "PNG"]
[BlackTeamCountry "AFG"]
[TimeControl "40/5400+30:1800+30"]

1. e4 c5 2. c3 Nf6 3. e5 Nd5 4. Nf3 Nc6 5. Bc4 e6 6. O-O Be7 7. d4 Nb6 8. Bd3 cxd4 9. cxd4 d6 10. Nc3 dxe5 11. dxe5 a6 12. Re1 Nd7 13. Qa4 Nc5 14. Qg4 Qxd3 15. Qxg7 Rf8 16. Bh6 Bd7 17. Rad1 Qf5 18. Nh4 Qh5 19. b4 Nxb4 20. Be3 Qxh4 21. Bxc5 Bxc5 22. Ne4 Be7 23. Nd6+ Bxd6 24. exd6 Nc6 25. g3 Qh5 26. Rb1 O-O-O 27. a4 f6 28. Rxe6 Rf7 {0-} 0-1